bitfinex-derivatives/quotes_BTCF0:USTF0_20240830
["timestamp","ask_amount","ask_price","bid_price","bid_amount"]
[1725053608568,0.5608,59120.0,59114.0,0.00025352]
[1725053608772,0.12,59115.0,59114.0,0.08483952]
[1725053611175,0.121,59115.0,59114.0,0.08483952]
[1725053611469,0.122,59115.0,59114.0,0.08483952]
[1725053612380,0.622,59115.0,59114.0,0.08483952]
[1725053613572,1.12948,59115.0,59114.0,0.08483952]
[1725053613777,0.084592,59110.0,59107.0,0.084595]
[1725053614070,0.12,59108.0,59107.0,0.084595]
[1725053614778,0.62,59108.0,59107.0,0.084595]
[1725053615569,0.621,59108.0,59107.0,0.084595]
[1725053615776,0.705595,59108.0,59107.0,0.084595]
[1725053616170,0.706595,59108.0,59107.0,0.084595]
[1725053616472,0.706595,59108.0,59106.0,0.3608]
[1725053616473,0.084596,59107.0,59106.0,0.3608]
[1725053617066,0.584596,59107.0,59106.0,0.3608]
[1725053617281,0.084611,59097.0,59067.0,0.3608]
[1725053617585,0.12,59068.0,59067.0,0.084653]
[1725053617783,0.12,59068.0,59066.0,0.00088]
[1725053618270,0.12,59068.0,59064.0,0.084656]
[1725053618581,0.12,59068.0,59065.0,0.084655]
[1725053618765,0.121,59068.0,59065.0,0.084655]
[1725053619169,0.121,59068.0,59062.0,0.1254]
[1725053619375,0.121,59068.0,59063.0,0.084659]
[1725053619973,0.201,59068.0,59064.0,0.084657]
[1725053620169,0.2,59068.0,59064.0,0.084657]
[1725053620375,0.201,59068.0,59064.0,0.084657]
[1725053621575,0.3608,59067.0,59064.0,0.084657]
[1725053621987,0.201,59068.0,59064.0,0.084657]
[1725053622278,0.202,59068.0,59064.0,0.084657]
[1725053622778,0.201,59068.0,59064.0,0.084657]
[1725053622977,0.001,59067.0,59064.0,0.084657]
[1725053624374,0.001,59067.0,59065.0,0.084656]
[1725053624784,0.201,59067.0,59065.0,0.084656]
[1725053625578,0.202,59067.0,59065.0,0.084656]
[1725053625874,0.201,59067.0,59065.0,0.084656]
[1725053626075,0.202,59067.0,59065.0,0.084656]
[1725053626476,0.202,59067.0,59066.0,0.084655]
[1725053626980,0.202,59067.0,59066.0,0.445455]
[1725053627481,0.201,59067.0,59066.0,0.445455]
[1725053627685,0.202,59067.0,59066.0,0.445455]
[1725053628180,0.202,59067.0,59066.0,0.084655]
[1725053628972,0.002,59067.0,59066.0,0.445455]
[1725053629874,0.002,59067.0,59066.0,0.953375]
[1725053630189,0.002,59067.0,59066.0,1.03803]
[1725053630374,0.002,59067.0,59066.0,1.722685]
[1725053631383,0.00025374,59073.0,59072.0,0.169292]
[1725053631576,0.00025374,59073.0,59072.0,1.130092]
[1725053631775,0.00025374,59073.0,59072.0,1.722578]
[1725053632193,0.2,59085.0,59084.0,0.084629]
[1725053632378,0.02168386,59089.0,59084.0,0.7216]
[1725053632578,0.2,59091.0,59084.0,0.7216]
[1725053632887,0.5,59090.0,59084.0,0.7216]
[1725053633387,0.2,59091.0,59089.0,0.3608]
[1725053633584,0.2,59091.0,59090.0,0.08462]
[1725053634890,0.201,59091.0,59090.0,0.08462]
[1725053635184,0.001,59091.0,59090.0,0.08462]
[1725053635894,0.001,59091.0,59090.0,0.44542]
[1725053640876,0.001,59091.0,59090.0,0.53004]
[1725053641974,0.001,59091.0,59090.0,0.61466]
[1725053644991,0.002,59091.0,59090.0,0.62266]
[1725053645187,0.002,59091.0,59090.0,1.73034]
[1725053646393,0.00025374,59093.0,59092.0,0.253854]
[1725053647589,0.00025374,59093.0,59092.0,0.260854]
[1725053647991,0.00025374,59093.0,59092.0,0.266854]
[1725053649697,0.00025374,59093.0,59092.0,0.267854]
[1725053652588,0.00025374,59093.0,59092.0,0.628654]
[1725053653184,0.00025374,59093.0,59092.0,0.614654]
[1725053653394,0.00025374,59093.0,59092.0,0.628654]
[1725053653987,0.00025374,59093.0,59092.0,0.622654]
[1725053654196,0.00025374,59093.0,59092.0,0.267854]
[1725053654404,0.00025374,59093.0,59092.0,0.628654]
[1725053656992,0.00025374,59093.0,59092.0,0.620654]
[1725053657198,0.00025374,59093.0,59092.0,0.713272]
[1725053657988,7.4e-07,59093.0,59092.0,1.820952]
[1725053662005,7.4e-07,59093.0,59092.0,1.460152]
[1725053662198,7.4e-07,59093.0,59092.0,1.820952]
[1725053664608,0.68097176,59107.0,59106.0,0.084598]
[1725053664910,0.62027542,59107.0,59106.0,0.084598]
[1725053665113,0.68097176,59107.0,59106.0,0.084598]
[1725053665808,0.68097176,59107.0,59106.0,0.085598]
[1725053666007,0.60097176,59107.0,59106.0,0.085598]
[1725053666204,0.60097176,59107.0,59106.0,0.086598]
[1725053669003,0.62214921,59107.0,59106.0,0.086598]
[1725053673099,0.56145287,59107.0,59106.0,0.086598]
[1725053673304,0.44145287,59107.0,59106.0,0.086598]
[1725053675120,0.35685687,59107.0,59106.0,0.171196]
[1725053675907,0.02117745,59107.0,59106.0,0.171196]
[1725053676101,0.1809,59108.0,59107.0,0.084596]
[1725053676296,0.1809,59108.0,59107.0,0.169192]
[1725053676713,0.19798833,59108.0,59107.0,0.169192]
[1725053676901,0.69798833,59108.0,59107.0,0.169192]
[1725053677297,0.69798833,59108.0,59107.0,0.171192]
[1725053685306,0.75868467,59108.0,59107.0,0.171192]
[1725053686013,0.69798833,59108.0,59107.0,0.171192]
[1725053689311,0.78258333,59108.0,59107.0,0.086596]
[1725053689505,0.84327967,59108.0,59107.0,0.086596]
[1725053690213,0.78258333,59108.0,59107.0,0.086596]
[1725053690420,0.28258333,59108.0,59107.0,0.086596]
[1725053691106,0.64338333,59108.0,59107.0,0.086596]
[1725053691607,0.28258333,59108.0,59107.0,0.086596]
[1725053691810,0.78258333,59108.0,59107.0,0.086596]
[1725053692321,0.64338333,59108.0,59107.0,0.086596]
[1725053692908,1.14338333,59108.0,59107.0,0.086596]
[1725053693113,0.84327967,59108.0,59107.0,0.086596]
[1725053693314,0.78258333,59108.0,59107.0,0.086596]
[1725053693512,0.28258333,59108.0,59107.0,0.086596]
[1725053696116,0.34327967,59108.0,59107.0,0.086596]
[1725053696321,0.84327967,59108.0,59107.0,0.086596]
[1725053696623,0.34327967,59108.0,59107.0,0.086596]
[1725053700028,0.28237967,59108.0,59107.0,0.086596]
[1725053703317,0.22168333,59108.0,59107.0,0.086596]
[1725053703824,0.58248333,59108.0,59107.0,0.086596]
[1725053704816,0.1861367,59108.0,59107.0,0.086596]
[1725053705012,0.5469367,59108.0,59107.0,0.086596]
[1725053705213,0.6482952,59108.0,59107.0,0.086596]
[1725053705418,0.5637002,59108.0,59107.0,0.086596]
[1725053705717,1.0637002,59108.0,59107.0,0.086596]
[1725053705924,0.7029002,59108.0,59107.0,0.086596]
[1725053706121,0.5637002,59108.0,59107.0,0.086596]
[1725053706322,0.6482952,59108.0,59107.0,0.086596]
[1725053706914,1.1482952,59108.0,59107.0,0.085596]
[1725053707121,1.20899154,59108.0,59107.0,0.086596]
[1725053707623,0.70899154,59108.0,59107.0,0.084596]
[1725053707818,0.2874952,59108.0,59107.0,0.084596]
[1725053708023,0.6482952,59108.0,59107.0,0.084596]
[1725053708222,1.1482952,59108.0,59107.0,0.084596]
[1725053708423,1.20899154,59108.0,59107.0,0.084596]
[1725053708623,0.70899154,59108.0,59107.0,0.084596]
[1725053708828,0.6482952,59108.0,59107.0,0.084596]
[1725053709025,0.2874952,59108.0,59107.0,0.084596]
[1725053709217,1.1482952,59108.0,59107.0,0.084596]
[1725053709525,0.70899154,59108.0,59107.0,0.084596]
[1725053709724,0.6482952,59108.0,59107.0,0.084596]
[1725053710128,1.1482952,59108.0,59107.0,0.084596]
[1725053710325,0.84819154,59108.0,59107.0,0.084596]
[1725053710525,1.1482952,59108.0,59107.0,0.084596]
[1725053710725,0.6482952,59108.0,59107.0,0.084596]
[1725053710920,0.2874952,59108.0,59107.0,0.084596]
[1725053711125,0.6482952,59108.0,59107.0,0.084596]
[1725053711327,1.1482952,59108.0,59107.0,0.084596]
[1725053711627,0.70899154,59108.0,59107.0,0.084596]
[1725053711933,1.1482952,59108.0,59107.0,0.084596]
[1725053712124,1.20899154,59108.0,59107.0,0.084596]
[1725053712323,0.70899154,59108.0,59107.0,0.084596]
[1725053712524,0.6482952,59108.0,59107.0,0.084596]
[1725053712835,1.1482952,59108.0,59107.0,0.084596]
[1725053713135,1.20899154,59108.0,59107.0,0.084596]
[1725053713435,0.34819154,59108.0,59107.0,0.084596]
[1725053713624,0.2874952,59108.0,59107.0,0.084596]
[1725053713831,0.2874952,59108.0,59101.0,0.00025374]
[1725053713832,0.084603,59105.0,59104.0,0.084599]
[1725053714030,0.204603,59105.0,59104.0,0.084599]
[1725053716334,0.204603,59105.0,59104.0,0.085599]
[1725053717044,0.289206,59105.0,59104.0,0.085599]
[1725053717340,0.289206,59105.0,59101.0,0.00025374]
[1725053717341,0.253809,59102.0,59101.0,0.00025374]
[1725053717545,0.74306837,59102.0,59101.0,0.00025374]
[1725053717944,1.30156837,59102.0,59101.0,0.00025374]
[1725053718245,1.36226471,59102.0,59101.0,0.00025374]
[1725053719347,1.41896471,59102.0,59101.0,0.00125374]
[1725053720046,1.41996471,59102.0,59101.0,0.00025374]
[1725053720633,1.46996471,59102.0,59101.0,0.00025374]
[1725053720835,0.084619,59091.0,59090.0,0.08462]
[1725053721045,0.18069634,59091.0,59088.0,0.0581]
[1725053721245,0.3608,59089.0,59088.0,0.0581]
[1725053721443,0.42149634,59089.0,59088.0,0.0581]
[1725053721649,0.3608,59089.0,59088.0,0.0581]
[1725053721846,0.945422,59089.0,59088.0,0.0581]
[1725053722240,0.437422,59089.0,59088.0,0.0581]
[1725053722846,0.084623,59088.0,59087.0,0.084624]
[1725053723043,0.184623,59088.0,59087.0,0.084624]
[1725053723450,0.684623,59088.0,59087.0,0.084624]
[1725053723652,0.672623,59088.0,59087.0,0.084624]
[1725053724253,0.672623,59088.0,59087.0,0.098624]
[1725053724942,0.673623,59088.0,59087.0,0.108624]
[1725053725149,0.73431934,59088.0,59087.0,0.108624]
[1725053725436,0.673623,59088.0,59087.0,0.108624]
[1725053725642,0.673623,59088.0,59087.0,0.024]
[1725053728244,0.758246,59088.0,59087.0,0.024]
[1725053729045,1.119046,59088.0,59087.0,0.024]
[1725053729239,0.084629,59084.0,59071.0,0.084648]
[1725053729453,2.142143,59088.0,59070.0,0.07377326]
[1725053729454,0.565446,59072.0,59070.0,0.07377326]
[1725053729643,0.084648,59071.0,59070.0,0.0564]
[1725053729847,0.5929878,59071.0,59070.0,0.0564]
[1725053730149,0.0929878,59071.0,59070.0,0.0564]
[1725053730355,0.5929878,59071.0,59070.0,0.0564]
[1725053730849,0.5939878,59071.0,59070.0,0.0564]
[1725053731054,0.7263478,59071.0,59070.0,0.0564]
[1725053731249,0.7253478,59071.0,59070.0,0.0564]
[1725053732356,0.7263478,59071.0,59070.0,0.0574]
[1725053732556,1.2342278,59071.0,59070.0,0.001]
[1725053732750,1.9188758,59071.0,59070.0,0.001]
[1725053734659,0.084655,59066.0,59065.0,0.0001703]
[1725053734851,0.565455,59066.0,59065.0,0.0001703]
[1725053735252,1.15011,59066.0,59065.0,0.0001703]
[1725053735455,0.08466,59063.0,59059.0,0.0601]
[1725053735659,0.12,59060.0,59059.0,0.0601]
[1725053736064,0.565463,59060.0,59059.0,0.0601]
[1725053736356,1.065463,59060.0,59059.0,0.0601]
[1725053738464,1.066463,59060.0,59059.0,0.0601]
[1725053738663,1.198823,59060.0,59059.0,0.0601]
[1725053739056,0.084667,59058.0,59056.0,0.084669]
[1725053739260,0.12,59057.0,59056.0,0.084669]
[1725053740348,0.204668,59057.0,59056.0,0.084669]
[1725053740550,0.205668,59057.0,59056.0,0.084669]
[1725053740752,0.338028,59057.0,59056.0,0.084669]
[1725053740948,0.11591841,59057.0,59056.0,0.084669]
[1725053741353,0.11691841,59057.0,59056.0,0.084669]
[1725053741765,0.20158641,59057.0,59056.0,0.084669]
[1725053742364,0.34245147,59057.0,59056.0,0.084669]
[1725053742958,0.22653306,59057.0,59056.0,0.084669]
[1725053743160,0.501,59057.0,59056.0,0.169338]
[1725053743462,0.001,59057.0,59056.0,0.169338]
[1725053743856,0.621,59057.0,59056.0,0.169338]
[1725053744059,0.121,59057.0,59056.0,0.169338]
[1725053747756,0.121,59057.0,59056.0,0.254007]
[1725053748372,0.001,59057.0,59056.0,0.254007]
[1725053748672,0.121,59057.0,59056.0,0.254007]
[1725053749674,0.121,59057.0,59056.0,0.614807]
[1725053749675,0.001,59057.0,59056.0,0.614807]
[1725053750062,0.001,59057.0,59056.0,0.699476]
[1725053750258,0.00025396,59063.0,59062.0,0.253983]
[1725053750457,0.00025396,59063.0,59062.0,0.614783]
[1725053750862,0.00025396,59063.0,59062.0,0.819444]
[1725053751567,0.12,59071.0,59070.0,0.169298]
[1725053751872,0.02084596,59073.0,59072.0,0.084646]
[1725053752067,0.1324,59078.0,59076.0,0.08464]
[1725053752264,0.20464,59077.0,59076.0,0.08464]
[1725053752456,0.70464,59077.0,59076.0,0.08464]
[1725053753962,0.52087653,59077.0,59076.0,0.08464]
[1725053754162,0.64087653,59077.0,59076.0,0.08464]
[1725053754468,0.52487653,59077.0,59076.0,0.08464]
[1725053754669,0.64887653,59077.0,59076.0,0.08464]
[1725053754969,0.14887653,59077.0,59076.0,0.08464]
[1725053755373,0.14787653,59077.0,59076.0,0.08464]
[1725053755671,0.14787653,59077.0,59076.0,0.16928]
[1725053755672,0.006,59077.0,59076.0,0.16928]
[1725053756767,0.003,59077.0,59076.0,0.67708]
[1725053757069,0.007,59077.0,59076.0,0.67708]
[1725053758278,0.007,59077.0,59076.0,0.16928]
[1725053760373,0.007,59077.0,59076.0,0.08464]
[1725053760577,0.452439,59077.0,59076.0,0.08464]
[1725053760878,0.952439,59077.0,59076.0,0.08464]
[1725053761078,0.084643,59074.0,59073.0,0.0607]
[1725053761281,0.204643,59074.0,59073.0,0.084645]
[1725053763175,0.204643,59074.0,59073.0,0.085645]
[1725053763773,0.206643,59074.0,59073.0,0.084645]
[1725053764168,0.208643,59074.0,59073.0,0.084645]
[1725053766279,0.084646,59072.0,59071.0,0.00025396]
[1725053766470,0.17778844,59072.0,59071.0,0.00025396]
[1725053766676,1.28562844,59072.0,59071.0,0.00025396]
[1725053766874,1.84622844,59072.0,59071.0,0.00025396]
[1725053767372,1.93087444,59072.0,59071.0,0.00025396]
[1725053767881,1.93087444,59072.0,59054.0,0.084671]
[1725053767882,0.084672,59055.0,59054.0,0.084671]
[1725053768090,0.204672,59055.0,59054.0,0.084671]
[1725053768669,0.704672,59055.0,59054.0,0.084671]
[1725053769479,1.065472,59055.0,59054.0,0.084671]
[1725053769682,0.084675,59053.0,59051.0,0.084675]
[1725053769877,0.204675,59052.0,59051.0,0.084675]
[1725053770078,0.284675,59052.0,59051.0,0.084675]
[1725053770483,0.083678,59050.0,59045.0,0.117]
[1725053770689,0.438478,59050.0,59045.0,0.117]
[1725053770984,0.437478,59050.0,59049.0,0.084679]
[1725053771377,0.931478,59050.0,59049.0,0.084679]
[1725053771578,0.932478,59050.0,59049.0,0.084679]
[1725053771780,0.432478,59050.0,59049.0,0.084679]
[1725053772287,0.931478,59050.0,59049.0,0.085679]
[1725053772783,0.5,59051.0,59050.0,0.084678]
[1725053774675,0.584676,59051.0,59050.0,0.084678]
[1725053781494,0.5,59051.0,59050.0,0.084678]
[1725053796704,0.5,59051.0,59050.0,0.169356]
[1725053800400,0.5,59051.0,59050.0,0.530156]
[1725053801407,0.22162764,59052.0,59051.0,0.169352]
[1725053803702,0.22262764,59052.0,59051.0,0.169352]
[1725053804307,0.14262764,59052.0,59051.0,0.169352]
[1725053809309,0.02262764,59052.0,59051.0,0.254028]
[1725053809504,0.14262764,59052.0,59051.0,0.254028]
[1725053815317,0.12,59052.0,59051.0,0.084676]
[1725053815508,0.12,59052.0,59051.0,0.169352]
[1725053817615,0.5,59059.0,59058.0,0.253998]
[1725053817809,0.00025396,59060.0,59059.0,0.253995]
[1725053818017,0.00025396,59060.0,59059.0,0.311895]
[1725053818209,0.00025396,59060.0,59059.0,0.819855]
[1725053818415,0.37025908,59068.0,59067.0,0.084653]
[1725053818723,0.51182215,59068.0,59067.0,0.084653]
[1725053819105,0.14156307,59068.0,59067.0,0.084653]
[1725053819519,0.14156307,59068.0,59067.0,0.169306]
[1725053819707,0.65556307,59068.0,59067.0,0.169306]
[1725053820112,0.16956307,59068.0,59067.0,0.169306]
[1725053822113,0.148,59068.0,59067.0,0.169306]
[1725053822410,0.028,59068.0,59067.0,0.169306]
[1725053825016,0.028,59068.0,59067.0,0.530106]
[1725053825613,0.028,59068.0,59067.0,0.675159]
[1725053828219,0.028,59068.0,59067.0,0.314359]
[1725053831122,0.028,59068.0,59067.0,0.675159]
[1725053832426,0.028,59068.0,59067.0,0.795159]
[1725053833020,0.028,59068.0,59067.0,0.675159]
[1725053833625,0.028,59068.0,59067.0,0.759812]
[1725053839227,0.028,59068.0,59067.0,1.987692]
[1725053841331,0.028,59068.0,59067.0,1.387692]
[1725053841930,0.028,59068.0,59067.0,1.026892]
[1725053842137,9.6e-07,59073.0,59067.0,1.04908]
[1725053842436,0.02152916,59094.0,59072.0,0.565446]
[1725053842636,0.1189,59097.0,59093.0,0.445416]
[1725053842830,0.1275301,59097.0,59096.0,0.084612]
[1725053843135,0.14905714,59097.0,59096.0,0.084612]
[1725053843337,0.65669714,59097.0,59096.0,0.084612]
[1725053843740,1.27669714,59097.0,59096.0,0.084612]
[1725053844042,0.084616,59093.0,59092.0,0.084617]
[1725053844225,0.3608,59093.0,59092.0,0.084617]
[1725053844427,0.4808,59093.0,59092.0,0.084617]
[1725053845533,0.4808,59093.0,59092.0,0.086617]
[1725053846040,0.4838,59093.0,59092.0,0.084617]
[1725053847642,0.4848,59093.0,59092.0,0.084617]
[1725053848038,0.4858,59093.0,59092.0,0.084617]
[1725053848936,0.4828,59093.0,59092.0,0.084617]
[1725053849141,0.4848,59093.0,59092.0,0.084617]
[1725053851734,0.54550857,59093.0,59092.0,0.084617]
[1725053852241,0.18470857,59093.0,59092.0,0.084617]
[1725053852943,0.124,59093.0,59092.0,0.084617]
[1725053859137,0.208616,59093.0,59092.0,0.084617]
[1725053861430,0.26932457,59093.0,59092.0,0.084617]
[1725053864235,0.084618,59092.0,59091.0,0.00025396]
[1725053864431,1.23762457,59092.0,59091.0,0.00025396]
[1725053864644,2.11380657,59092.0,59085.0,0.084627]
[1725053864839,2.11380657,59092.0,59081.0,0.084632]
[1725053864840,0.084634,59082.0,59081.0,0.084632]
[1725053865051,0.204634,59082.0,59081.0,0.084632]
[1725053865437,0.084639,59079.0,59078.0,0.084637]
[1725053865744,0.204639,59079.0,59078.0,0.084637]
[1725053865944,0.565439,59079.0,59078.0,0.084637]
[1725053867037,0.558439,59079.0,59078.0,0.084637]
[1725053867238,0.197639,59079.0,59078.0,0.084637]
[1725053867639,0.698639,59079.0,59078.0,0.091637]
[1725053868049,0.698639,59079.0,59078.0,0.104637]
[1725053868050,0.199639,59079.0,59078.0,0.104637]
[1725053868343,0.560439,59079.0,59078.0,0.104637]
[1725053868549,0.199639,59079.0,59078.0,0.104637]
[1725053871048,0.22080611,59079.0,59078.0,0.104637]
[1725053871741,0.58160611,59079.0,59078.0,0.104637]
[1725053871937,0.58160611,59079.0,59078.0,0.096637]
[1725053872149,0.22938311,59079.0,59078.0,0.096637]
[1725053873152,0.10938311,59079.0,59078.0,0.096637]
[1725053873349,0.22938311,59079.0,59078.0,0.096637]
[1725053875544,0.59018311,59079.0,59078.0,0.096637]
[1725053875744,0.22938311,59079.0,59078.0,0.096637]
[1725053879650,0.59018311,59079.0,59078.0,0.096637]
[1725053880346,0.59018311,59079.0,59078.0,0.02]
[1725053880347,0.67482211,59079.0,59078.0,0.02]
[1725053880956,1.17482211,59079.0,59078.0,0.02]
[1725053881148,1.23554376,59079.0,59078.0,0.02]
[1725053881659,0.73554376,59079.0,59078.0,0.02]
[1725053881959,0.67482211,59079.0,59078.0,0.02]
[1725053882159,1.78262211,59079.0,59078.0,0.02]
[1725053882359,1.24334376,59079.0,59078.0,0.02]
[1725053882557,1.74334376,59079.0,59078.0,0.02]
[1725053882746,1.38254376,59079.0,59078.0,0.02]
[1725053882946,1.11554376,59079.0,59078.0,0.02]
[1725053883153,1.17482211,59079.0,59078.0,0.02]
[1725053883760,1.23554376,59079.0,59078.0,0.02]
[1725053884557,2.25870476,59079.0,59073.0,0.00025396]
[1725053884753,0.650086,59074.0,59073.0,0.00025396]
[1725053885349,1.150086,59074.0,59073.0,0.00025396]
[1725053886755,1.150086,59074.0,59073.0,0.00125396]
[1725053886955,1.151086,59074.0,59073.0,0.00125396]
[1725053887355,1.152086,59074.0,59073.0,0.00125396]
[1725053887866,1.21281434,59074.0,59073.0,0.00125396]
[1725053889758,0.85201434,59074.0,59073.0,0.00125396]
[1725053889960,1.152086,59074.0,59073.0,0.00125396]
[1725053890159,0.85201434,59074.0,59073.0,0.00125396]
[1725053890360,1.152086,59074.0,59073.0,0.00125396]
[1725053890657,0.791286,59074.0,59073.0,0.00125396]
[1725053890857,1.152086,59074.0,59073.0,0.00125396]
[1725053891061,1.280806,59074.0,59073.0,0.00125396]
[1725053891259,1.42617958,59074.0,59073.0,0.00125396]
[1725053891463,1.42617993,59074.0,59073.0,0.00125396]
[1725053891663,2.53401993,59074.0,59073.0,0.00125396]
[1725053891862,2.53401993,59074.0,59073.0,1e-08]
[1725053892369,2.36473393,59074.0,59054.0,0.02594606]
[1725053892674,0.204671,59055.0,59054.0,0.084672]
[1725053892872,0.565471,59055.0,59054.0,0.084672]
[1725053893367,0.204671,59055.0,59054.0,0.084672]
[1725053893767,0.205671,59055.0,59054.0,0.085672]
[1725053894275,0.206671,59055.0,59054.0,0.085672]
[1725053895170,0.14811431,59055.0,59054.0,0.085672]
[1725053899372,0.23278531,59055.0,59054.0,0.085672]
[1725053900171,0.59358531,59055.0,59054.0,0.085672]
[1725053903781,1.09358531,59055.0,59054.0,0.085672]
[1725053903975,0.73278531,59055.0,59054.0,0.085672]
[1725053904178,1.09358531,59055.0,59054.0,0.085672]
[1725053904573,1.15433056,59055.0,59054.0,0.085672]
[1725053905977,0.79353056,59055.0,59054.0,0.085672]
[1725053906182,1.09358531,59055.0,59054.0,0.085672]
[1725053907899,1.09358531,59055.0,59054.0,0.077672]
[1725053908108,1.10227101,59055.0,59054.0,0.077672]
[1725053910310,0.74147101,59055.0,59054.0,0.077672]
[1725053911707,0.86939101,59055.0,59054.0,0.077672]
[1725053914907,1.10227101,59055.0,59054.0,0.077672]
[1725053915105,1.23019101,59055.0,59054.0,0.07048607]
[1725053916609,1.06164612,59055.0,59054.0,0.07048607]
[1725053916804,1.21641251,59055.0,59054.0,0.07048607]
[1725053917916,0.85561251,59055.0,59054.0,0.07048607]
[1725053922012,0.72769251,59055.0,59054.0,0.07048607]
[1725053922209,0.85561251,59055.0,59054.0,0.07048607]
[1725053925016,0.72769251,59055.0,59054.0,0.07048607]
[1725053925211,0.85561251,59055.0,59054.0,0.07048607]
[1725053925913,0.72769251,59055.0,59054.0,0.07048607]
[1725053926424,0.65553209,59055.0,59054.0,0.07048607]
[1725053927409,0.15553209,59055.0,59054.0,0.07048607]
[1725053931219,0.15553209,59055.0,59054.0,0.043762]
[1725053932921,0.15553209,59055.0,59054.0,0.042762]
[1725053933125,0.16953209,59055.0,59054.0,0.042762]
[1725053933616,0.18353209,59055.0,59054.0,0.042762]
[1725053934121,0.26820309,59055.0,59054.0,0.042762]
[1725053943233,0.06353209,59055.0,59054.0,0.127434]
[1725053943431,0.028,59055.0,59054.0,0.212106]
[1725053943638,0.028,59055.0,59054.0,1.680906]
[1725053945624,0.00025396,59060.0,59059.0,0.16933]
[1725053945829,0.00025396,59060.0,59059.0,0.65013]
[1725053946029,0.00025396,59060.0,59059.0,1.75809]
[1725053946732,0.01425396,59060.0,59059.0,1.842755]
[1725053946932,0.08474,59070.0,59069.0,0.169302]
[1725053947127,0.08474,59070.0,59069.0,0.530102]
[1725053947720,0.53768262,59077.0,59070.0,0.084649]
[1725053947929,0.53768262,59077.0,59072.0,0.084646]
[1725053947930,0.0848,59073.0,59072.0,0.084646]
[1725053948424,0.0848,59073.0,59072.0,0.169292]
[1725053950025,0.0848,59073.0,59072.0,0.170292]
[1725053950424,0.0848,59073.0,59072.0,0.171292]
[1725053951226,0.12,59074.0,59073.0,0.084645]
[1725053951431,0.39099584,59078.0,59077.0,0.084639]
[1725053951732,0.39942932,59078.0,59077.0,0.084639]
[1725053953125,0.39942932,59078.0,59077.0,0.085639]
[1725053953433,0.03862932,59078.0,59077.0,0.085639]
[1725053953642,0.013,59078.0,59077.0,0.086639]
[1725053953934,0.0216156,59078.0,59077.0,0.086639]
[1725053957127,0.0216156,59078.0,59077.0,0.171278]
[1725053957833,0.0086156,59078.0,59077.0,0.174278]
[1725053958039,0.53250385,59079.0,59078.0,0.084638]
[1725053958239,0.53094384,59079.0,59078.0,0.084638]
[1725053958436,0.53947135,59079.0,59078.0,0.084638]
[1725053958739,0.03947135,59079.0,59078.0,0.084638]
[1725053959340,0.03947135,59079.0,59078.0,0.086638]
[1725053960138,0.03947135,59079.0,59078.0,0.085638]
[1725053960833,0.03947135,59079.0,59078.0,0.086638]
[1725053961740,0.03947135,59079.0,59078.0,0.171276]
[1725053962541,0.03094384,59079.0,59078.0,0.171276]
[1725053963245,0.03094384,59079.0,59078.0,0.255914]
[1725053976643,0.00025396,59079.0,59078.0,0.255914]
[1725053976850,0.00025396,59079.0,59078.0,0.254914]
[1725053977054,0.00125396,59079.0,59078.0,0.261914]
[1725053977457,0.00125396,59079.0,59078.0,0.2973642]
[1725053977749,0.00025396,59079.0,59078.0,0.6561642]
[1725053978144,0.00025396,59079.0,59078.0,0.6501642]
[1725053978344,0.00125396,59079.0,59078.0,0.6581642]
[1725053979052,0.00125396,59079.0,59078.0,0.625714]
[1725053979452,0.00125396,59079.0,59078.0,0.180276]
[1725053979764,0.00125396,59079.0,59078.0,0.088638]
[1725053979765,0.08488996,59079.0,59078.0,0.088638]
[1725053980060,0.08488996,59079.0,59078.0,0.092638]
[1725053980764,0.08488996,59079.0,59078.0,0.088638]
[1725053981761,0.09688996,59079.0,59078.0,0.086638]
[1725053983068,0.09888996,59079.0,59078.0,0.086638]
[1725053983864,0.45968996,59079.0,59078.0,0.086638]
[1725053987266,0.95968996,59079.0,59078.0,0.086638]
[1725053987867,1.04432596,59079.0,59078.0,0.002]
[1725053988365,2.15212596,59079.0,59078.0,0.002]
[1725053989465,1.55212596,59079.0,59078.0,0.002]
[1725053989675,1.61284279,59079.0,59078.0,0.002]
[1725053990767,1.69747879,59079.0,59078.0,0.002]
[1725053990968,2.29747879,59079.0,59078.0,0.002]
[1725053991481,2.42527879,59079.0,59078.0,0.002]
[1725053993978,2.55527879,59079.0,59078.0,0.002]
[1725053995168,2.55527879,59079.0,59068.0,0.00025396]
[1725053995169,0.169302,59069.0,59068.0,0.00025396]
[1725053995365,0.650102,59069.0,59068.0,0.00025396]
[1725053995970,0.289302,59069.0,59068.0,0.00025396]
[1725053996179,0.650102,59069.0,59068.0,0.00025396]
[1725053996376,0.650102,59069.0,59068.0,0.00325396]
[1725053996772,1.150102,59069.0,59068.0,0.00325396]
[1725053997381,1.150102,59069.0,59068.0,0.00625396]
[1725053998077,1.2108384,59069.0,59068.0,0.00625396]
[1725053998681,1.24076892,59069.0,59068.0,0.00625396]
[1725054000276,2.37256352,59069.0,59068.0,0.00625396]
[1725054000479,2.55886352,59069.0,59068.0,0.00625396]
[1725054000883,2.55886352,59069.0,59049.0,0.1276]
[1725054000884,0.084671,59055.0,59052.0,0.084674]
[1725054001088,0.084676,59053.0,59052.0,0.084674]
[1725054001274,0.204676,59053.0,59052.0,0.084674]
[1725054001781,0.704676,59053.0,59052.0,0.084674]
[1725054001986,0.204676,59053.0,59052.0,0.084674]
[1725054002373,0.205676,59053.0,59052.0,0.098674]
[1725054002574,0.705676,59053.0,59052.0,0.098674]
[1725054002790,1.066476,59053.0,59052.0,0.098674]
[1725054002993,0.566476,59053.0,59052.0,0.098674]
[1725054003686,1.052476,59053.0,59052.0,0.098674]
[1725054004581,0.552476,59053.0,59052.0,0.098674]
[1725054005083,0.58455652,59053.0,59052.0,0.101674]